fUSD/lending_fUSD_20250906
["ID","MTS","AMOUNT","RATE_DAILY","PERIOD"]
[383938204,1757187042312,-227.718672,0.00031126,7]
[383938205,1757187042322,-187.469581,0.00031126,7]
[383938206,1757187042332,-187.469581,0.00031126,7]
[383938207,1757187042341,-187.469581,0.00031126,7]
[383938208,1757187042351,-151.0,0.00031126,7]
[383938209,1757187042360,-187.469581,0.00031126,7]
[383938210,1757187042369,-151.0,0.00031126,7]
[383938211,1757187042379,-151.0,0.00031126,7]
[383938212,1757187042388,-151.0,0.00031126,7]
[383938213,1757187042398,-151.0,0.00031126,7]
[383938214,1757187042408,-151.0,0.00031126,7]
[383938215,1757187042417,-1000.0,0.00031126,2]
[383938216,1757187042427,-500.0,0.00031173,5]
[383938217,1757187042437,-500.93487503,0.00031173,5]
[383938218,1757187042447,-350.0,0.00031173,5]
[383938219,1757187042456,-150.0,0.00031173,5]
[383938220,1757187042465,-160.0,0.000312,7]
[383938221,1757187042475,-434.259999,0.0003121,2]
[383938222,1757187042485,-151.0,0.00031226,7]
[383938223,1757187042494,-151.0,0.00031226,7]
[383938224,1757187042504,-151.0,0.00031226,7]
[383938225,1757187042514,-151.0,0.00031226,7]
[383938226,1757187042524,-151.0,0.00031226,7]
[383938227,1757187042533,-151.0,0.00031226,7]
[383938228,1757187042543,-170408.639457,0.00031236,2]
[383938229,1757187042552,-151.0,0.00031236,7]
[383938230,1757187042562,-151.0,0.00031236,7]
[383938231,1757187042571,-151.0,0.00031236,7]
[383938232,1757187042581,-151.0,0.00031236,7]
[383938233,1757187042590,-151.0,0.00031236,7]
[383938234,1757187042599,-151.0,0.00031236,7]
[383938235,1757187042609,-151.0,0.00031236,7]
[383938236,1757187042619,-151.0,0.00031236,7]
[383938237,1757187042628,-151.0,0.00031236,7]
[383938238,1757187042638,-151.0,0.00031236,7]
[383938239,1757187042647,-151.0,0.00031236,7]
[383938240,1757187042656,-151.0,0.00031236,7]
[383938241,1757187042666,-151.0,0.00031236,7]
[383938242,1757187042676,-151.0,0.00031236,7]
[383938243,1757187042685,-186.578004,0.00031236,7]
[383938244,1757187042695,-480.885614,0.00031236,7]
[383938245,1757187042704,-480.885614,0.00031236,7]
[383938246,1757187042713,-480.885614,0.00031236,7]
[383938247,1757187042723,-480.885614,0.00031236,7]
[383938248,1757187042732,-154.349297,0.00031236,7]
[383938249,1757187042741,-154.349297,0.00031236,7]
[383938250,1757187042751,-154.349297,0.00031236,7]
[383938251,1757187042760,-154.349297,0.00031236,7]
[383938252,1757187042769,-151.0,0.00031236,7]
[383938253,1757187042779,-151.0,0.00031236,7]
[383938254,1757187042788,-151.0,0.00031236,7]
[383938255,1757187042798,-151.0,0.00031236,7]
[383938256,1757187042807,-227.718672,0.00031236,7]
[383938257,1757187042817,-227.718672,0.00031236,7]
[383938258,1757187042826,-227.718672,0.00031236,7]
[383938259,1757187042835,-227.718674,0.00031236,7]
[383938260,1757187042846,-187.469581,0.00031236,7]
[383938261,1757187042855,-187.469581,0.00031236,7]
[383938262,1757187042865,-187.469581,0.00031236,7]
[383938263,1757187042874,-151.0,0.00031236,7]
[383938264,1757187042884,-187.469573,0.00031236,7]
[383938265,1757187042894,-151.0,0.00031236,7]
[383938266,1757187042904,-294.506924,0.00031236,7]
[383938267,1757187042914,-200.0,0.00031262,2]
[383938268,1757187042924,-216.83076564,0.00031273,5]
[383938269,1757187042934,-500.0,0.00031273,5]
[383938270,1757187042943,-187.954,0.0003133,29]
[383938271,1757187042953,-1789.298,0.0003133,29]
[383938272,1757187042963,-174.97,0.00031332,2]
[383938273,1757187042972,-1387.8,0.00031377,2]
[383938274,1757187042982,-1387.8,0.00031377,2]
[383938275,1757187042991,-1387.8,0.00031377,2]
[383938276,1757187043001,-1387.8,0.00031377,2]
[383938277,1757187043010,-1387.8,0.00031377,2]
[383938278,1757187043020,-1387.8,0.00031377,2]
[383938279,1757187043030,-1387.8,0.00031377,2]
[383938280,1757187043039,-1387.8,0.00031377,2]
[383938281,1757187043049,-1387.8,0.00031377,2]
[383938282,1757187043059,-1387.8,0.00031377,2]
[383938283,1757187043068,-1387.8,0.00031377,2]
[383938284,1757187043077,-1387.8,0.00031377,2]
[383938285,1757187043087,-1387.8,0.00031377,2]
[383938286,1757187043096,-1387.8,0.00031377,2]
[383938287,1757187043106,-1387.8,0.00031377,2]
[383938288,1757187043117,-1387.8,0.00031377,2]
[383938289,1757187043126,-1387.8,0.00031377,2]
[383938290,1757187043135,-1387.8,0.00031377,2]
[383938291,1757187043144,-1387.8,0.00031377,2]
[383938293,1757187043154,-1387.8,0.00031377,2]
[383938295,1757187043163,-1387.8,0.00031377,2]
[383938297,1757187043173,-1387.8,0.00031377,2]
[383938299,1757187043182,-1387.8,0.00031377,2]
[383938301,1757187043191,-1387.86355639,0.00031377,2]
[383938302,1757187043201,-200.0,0.00031378,3]
[383938304,1757187043210,-200.0,0.00031378,3]
[383938306,1757187043219,-200.0,0.00031378,2]
[383938309,1757187043228,-500.0,0.00031378,3]
[383938311,1757187043237,-253.6227908,0.00031378,3]
[383938314,1757187043246,-150.0,0.00031378,3]
[383938316,1757187043256,-204.5099004,0.00031378,3]
[383938319,1757187043265,-200.0,0.00031378,2]
[383938322,1757187043275,-200.0,0.00031378,2]
[383938325,1757187043285,-200.0,0.00031378,2]
[383938327,1757187043294,-200.0,0.00031378,2]
[383938329,1757187043304,-500.0,0.00031378,2]
[383938331,1757187043314,-500.0,0.00031378,2]
[383938333,1757187043324,-200.0,0.00031378,2]
[383938334,1757187043333,-500.0,0.00031378,2]
[383938337,1757187043347,-500.0,0.00031378,2]
[383938339,1757187043365,-500.0,0.00031378,2]
[383938342,1757187043382,-500.0,0.00031378,2]
[383938345,1757187043402,-150.0,0.00031378,2]
[383938347,1757187043419,-500.0,0.00031378,2]
[383938350,1757187043435,-500.0,0.00031378,2]
[383938353,1757187043453,-200.0,0.00031378,2]
[383938355,1757187043473,-200.0,0.00031378,2]
[383938358,1757187043495,-251.61319408,0.00031378,2]
[383938361,1757187043512,-200.0,0.00031378,2]
[383938363,1757187043530,-500.0,0.00031378,2]
[383938366,1757187043546,-200.0,0.00031378,2]
[383938369,1757187043564,-500.0,0.00031378,2]
[383938371,1757187043578,-232.7537031,0.00031436,2]
[383938373,1757187043594,-3506.7463,0.0003149,2]
[383938376,1757187043609,-166.67,0.00031535,2]
[383938378,1757187043624,-200.0,0.00031574,2]
[383938381,1757187043640,-163.24,0.00031586,2]
[383938383,1757187043656,-2000.0,0.000316,2]
[383938385,1757187043671,-826.29267021,0.00031616,5]
[383938388,1757187043688,-151.0,0.00031649,7]
[383938390,1757187043703,-500.0,0.00031652,3]
[383938394,1757187043727,-151.88234701,0.00031652,3]
[383938396,1757187043742,-500.0,0.00031652,2]
[383938399,1757187043757,-335.19890001,0.00031652,2]
[383938401,1757187043772,-500.0,0.00031652,2]
[383938403,1757187043787,-500.0,0.00031652,2]
[383938406,1757187043804,-500.0,0.00031652,2]
[383938408,1757187043819,-500.0,0.00031652,2]
[383938410,1757187043835,-251.33219181,0.00031652,2]
[383938413,1757187043850,-500.0,0.00031652,2]
[383938415,1757187043866,-567.16,0.00031652,2]
[383938418,1757187043883,-211.82200047,0.00031652,2]
[383938420,1757187043899,-1000.0,0.000317,2]
[383938423,1757187043915,-9733.02,0.000317,7]
[383938425,1757187043931,-1000.0,0.00031721,5]
[383938427,1757187043946,-250.0,0.00031721,5]
[383938430,1757187043962,-183.88,0.00031793,30]
[383938432,1757187043979,-400.34,0.00031793,30]
[383938435,1757187043995,-1000.0,0.00031821,5]
[383938437,1757187044010,-179.01286705,0.00031839,2]
[383938440,1757187044030,-200.0,0.0003189,2]
[383938442,1757187044047,-935.82,0.000319,7]
[383938445,1757187044065,-500.0,0.00031926,3]
[383938447,1757187044082,-500.0,0.00031926,2]
[383938450,1757187044099,-500.0,0.00031926,2]
[383938452,1757187044114,-500.0,0.00031926,2]
[383938455,1757187044130,-500.0,0.00031926,2]
[383938457,1757187044147,-500.0,0.00031926,2]
[383938459,1757187044162,-500.0,0.00031926,2]
[383938462,1757187044178,-400.01,0.00031927,2]
[383938465,1757187044193,-167.97,0.00031935,2]
[383938467,1757187044209,-1899.62297126,0.00031968,2]
[383938470,1757187044224,-3506.7463,0.0003199,2]
[383938473,1757187044240,-12612.26469978,0.00031993,2]
[383938475,1757187044256,-7773.2768939,0.00032,5]
[383938478,1757187044272,-334.4,0.00032,30]
[383938481,1757187044288,-49.81,0.00032067,120]
[383938483,1757187044306,-285.29773598,0.00032067,14]
[383938486,1757187044322,-151.0,0.00032067,14]
[383938487,1757187044337,-7215.6298031,0.00032078,2]
[383938488,1757187044352,-17572.3488911,0.00032078,2]
[383938489,1757187044367,-480.885614,0.0003208,7]
[383938490,1757187044381,-480.885614,0.0003208,7]
[383938491,1757187044396,-480.885614,0.0003208,7]
[383938492,1757187044412,-480.885614,0.0003208,7]
[383938493,1757187044426,-154.349297,0.0003208,7]
[383938494,1757187044441,-154.349297,0.0003208,7]
[383938495,1757187044457,-154.349297,0.0003208,7]
[383938496,1757187044472,-154.349297,0.0003208,7]
[383938497,1757187044489,-3011.38049103,0.000321,7]
[383938498,1757187044504,-212.67823062,0.000321,7]
[383938499,1757187044520,-447.0,0.00032123,5]
[383938500,1757187044535,-166.66,0.00032154,2]
[383938501,1757187044550,-500.0,0.000322,3]
[383938502,1757187044565,-500.0,0.000322,2]
[383938504,1757187044580,-500.0,0.000322,2]
[383938506,1757187044595,-500.0,0.000322,2]
[383938508,1757187044612,-500.0,0.000322,2]
[383938511,1757187044628,-500.0,0.000322,2]
[383938514,1757187044644,-500.0,0.000322,2]
[383938517,1757187044661,-500.0,0.000322,2]
[383938519,1757187044678,-224.81,0.00032204,120]
[383938522,1757187044694,-200.0,0.00032209,2]
[383938525,1757187044711,-211.0,0.00032229,7]
[383938528,1757187044728,-350.0,0.00032268,5]
[383938530,1757187044743,-1000.0,0.000323,2]
[383938533,1757187044759,-500.0,0.00032324,5]
[383938536,1757187044775,-224.81,0.00032341,120]
[383938538,1757187044790,-163.24,0.00032342,2]
[383938541,1757187044806,-1500.0,0.00032368,5]
[383938544,1757187044822,-9733.02,0.000324,7]
[383938546,1757187044837,-1000.0,0.00032417,2]
[383938549,1757187044852,-500.0,0.00032474,3]
[383938551,1757187044870,-500.0,0.00032474,2]
[383938554,1757187044887,-500.0,0.00032474,2]
[383938557,1757187044903,-514.3751934,0.00032474,2]
[383938559,1757187044919,-500.0,0.00032474,2]
[383938562,1757187044934,-500.0,0.00032474,2]
[383938565,1757187044950,-500.0,0.00032474,2]
[383938567,1757187044966,-224.81,0.00032478,120]
[383938570,1757187044982,-3506.7463,0.0003249,2]
[383938573,1757187044997,-1425.0,0.00032547,2]
[383938575,1757187045014,-1425.0,0.00032564,2]
[383938578,1757187045029,-300.0,0.00032586,5]
[383938580,1757187045044,-300.0,0.00032586,5]
[383938583,1757187045060,-300.0,0.00032586,5]
[383938585,1757187045075,-300.0,0.00032586,5]
[383938588,1757187045091,-151.0,0.00032586,7]
[383938591,1757187045106,-151.0,0.00032586,7]
[383938593,1757187045122,-151.0,0.00032586,7]
[383938596,1757187045137,-200.0,0.00032586,2]
[383938599,1757187045153,-200.0,0.00032586,2]
[383938601,1757187045169,-200.0,0.00032586,2]
[383938604,1757187045185,-200.0,0.00032586,2]
[383938607,1757187045200,-200.0,0.00032586,2]
[383938609,1757187045215,-200.0,0.00032586,2]
[383938612,1757187045231,-200.0,0.00032586,2]
[383938615,1757187045247,-200.0,0.00032586,2]
[383938617,1757187045262,-200.0,0.00032586,2]
[383938620,1757187045277,-200.0,0.00032586,2]
[383938622,1757187045292,-200.0,0.00032586,2]
[383938625,1757187045307,-200.0,0.00032586,2]
[383938628,1757187045322,-200.0,0.00032586,2]
[383938630,1757187045338,-200.0,0.00032586,2]
[383938633,1757187045353,-200.0,0.00032586,2]
[383938636,1757187045368,-200.0,0.00032586,2]
[383938638,1757187045383,-200.0,0.00032586,2]
[383938641,1757187045398,-200.0,0.00032586,2]
[383938644,1757187045414,-200.0,0.00032586,2]
[383938646,1757187045428,-200.0,0.00032586,2]
[383938649,1757187045446,-200.0,0.00032586,2]
[383938652,1757187045462,-200.0,0.00032586,2]
[383938654,1757187045472,-200.0,0.00032586,2]
[383938656,1757187045482,-151.0,0.00032586,7]
[383938693,1757187045821,-200.0,0.00032586,2]
[383938698,1757187045859,-200.0,0.00032586,2]
[383938700,1757187045873,-200.0,0.00032586,2]
[383938702,1757187045882,-200.0,0.00032586,2]
[383938704,1757187045892,-200.0,0.00032586,2]
[383938706,1757187045901,-151.0,0.00032586,7]
[383938708,1757187045911,-200.0,0.00032586,2]
[383938710,1757187045921,-200.0,0.00032586,2]
[383938712,1757187045931,-200.0,0.00032586,2]
[383938714,1757187045941,-224.81,0.00032615,120]
[383938716,1757187045951,-3808.44039532,0.00032645,2]
[383938718,1757187045960,-10294.0,0.00032712,2]
[383938720,1757187045969,-6711.0,0.00032712,2]
[383938722,1757187045979,-209.0,0.00032745,7]
[383938724,1757187045991,-500.0,0.00032748,3]
[383938726,1757187046000,-500.0,0.00032748,2]
[383938728,1757187046011,-500.0,0.00032748,2]
[383938730,1757187046021,-500.0,0.00032748,2]
[383938732,1757187046034,-500.0,0.00032748,2]
[383938734,1757187046043,-500.0,0.00032748,2]
[383938736,1757187046054,-224.81,0.00032752,120]
[383938738,1757187046063,-1591.0183,0.00032777,10]
[383938740,1757187046076,-161.71811214,0.00032777,4]
[383938742,1757187046086,-3263.48701257,0.00032777,2]
[383938744,1757187046095,-935.82,0.000328,7]
[383938746,1757187046104,-211.0,0.00032809,2]
[383938748,1757187046114,-451.6568342,0.00032816,5]
[383938750,1757187046124,-480.885614,0.00032856,7]
[383938752,1757187046133,-480.885614,0.00032856,7]
[383938754,1757187046143,-480.885614,0.00032856,7]
[383938756,1757187046152,-480.885614,0.00032856,7]
[383938758,1757187046162,-154.349297,0.00032856,7]
[383938760,1757187046172,-154.349297,0.00032856,7]
[383938762,1757187046191,-154.349297,0.00032856,7]
[383938763,1757187046201,-154.349297,0.00032856,7]
[383938765,1757187046211,-151.0,0.00032857,7]
[383938767,1757187046220,-151.0,0.00032857,7]
[383938769,1757187046231,-156.832989,0.00032857,7]
[383938771,1757187046242,-151.0,0.00032857,7]
[383938773,1757187046252,-151.0,0.00032857,7]
[383938775,1757187046263,-151.0,0.00032867,7]
[383938777,1757187046274,-159.138225,0.00032867,7]
[383938779,1757187046283,-151.0,0.00032867,7]
[383938781,1757187046292,-151.0,0.00032867,7]
[383938783,1757187046301,-151.0,0.00032867,7]
[383938785,1757187046310,-151.0,0.00032867,7]
[383938787,1757187046320,-151.0,0.00032867,7]
[383938789,1757187046329,-151.0,0.00032867,7]
[383938791,1757187046338,-151.0,0.00032867,7]
[383938793,1757187046348,-151.0,0.00032867,7]
[383938795,1757187046357,-151.0,0.00032867,7]
[383938797,1757187046366,-151.0,0.00032867,7]
[383938799,1757187046375,-151.0,0.00032867,7]
[383938801,1757187046385,-480.885614,0.00032867,7]
[383938803,1757187046395,-480.885614,0.00032867,7]
[383938805,1757187046404,-480.885614,0.00032867,7]
[383938807,1757187046414,-480.885614,0.00032867,7]
[383938809,1757187046423,-154.349297,0.00032867,7]
[383938811,1757187046434,-154.349297,0.00032867,7]
[383938813,1757187046444,-154.349297,0.00032867,7]
[383938815,1757187046454,-154.349305,0.00032867,7]
[383938817,1757187046464,-500.0,0.00032873,3]
[383938819,1757187046473,-500.0,0.00032873,5]
[383938821,1757187046483,-500.0,0.00032873,5]
[383938823,1757187046492,-500.0,0.00032873,5]
[383938825,1757187046502,-150.0,0.00032873,5]
[383938827,1757187046513,-3000.0,0.00032873,2]
[383938829,1757187046523,-151.0,0.00032873,2]
[383938831,1757187046531,-322.6107,0.00032873,2]
[383938833,1757187046541,-151.0,0.00032873,2]
[383938835,1757187046551,-151.0,0.00032873,2]
[383938837,1757187046560,-151.0,0.00032873,2]
[383938839,1757187046570,-151.0,0.00032873,2]
[383938841,1757187046579,-250.0,0.00032873,2]
[383938843,1757187046589,-250.0,0.00032873,2]
[383938845,1757187046598,-151.0,0.00032873,2]
[383938847,1757187046608,-250.0,0.00032873,2]
[383938849,1757187046617,-250.0,0.00032873,2]
[383938851,1757187046627,-250.0,0.00032873,2]
[383938853,1757187046637,-151.0,0.00032873,2]
[383938855,1757187046646,-250.0,0.00032873,2]
[383938857,1757187046655,-250.0,0.00032873,2]
[383938859,1757187046664,-264.37230147,0.00032873,2]
[383938861,1757187046674,-151.0,0.00032873,2]
[383938863,1757187046683,-250.0,0.00032873,2]
[383938865,1757187046693,-151.0,0.00032873,2]
[383938867,1757187046703,-250.0,0.00032873,2]
[383938869,1757187046713,-151.0,0.00032873,2]
[383938871,1757187046725,-250.0,0.00032873,2]
[383938873,1757187046737,-151.0,0.00032873,2]
[383938875,1757187046747,-250.0,0.00032873,2]
[383938877,1757187046755,-250.0,0.00032873,2]
[383938879,1757187046765,-151.0,0.00032873,2]
[383938881,1757187046775,-250.0,0.00032873,2]
[383938883,1757187046784,-151.0,0.00032873,2]
[383938884,1757187046793,-250.0,0.00032873,2]
[383938886,1757187046803,-151.0,0.00032873,2]
[383938888,1757187046812,-250.0,0.00032873,2]
[383938890,1757187046822,-151.0,0.00032873,2]
[383938892,1757187046831,-250.0,0.00032873,2]
[383938894,1757187046841,-151.0,0.00032873,2]
[383938896,1757187046851,-151.0,0.00032873,2]
[383938898,1757187046861,-695.39793187,0.00032873,2]
[383938900,1757187046870,-267.46074303,0.00032873,2]
[383938902,1757187046880,-151.0,0.00032873,2]
[383938904,1757187046891,-151.0,0.00032873,2]
[383938906,1757187046901,-160.0,0.00032873,2]
[383938908,1757187046911,-250.0,0.00032873,2]
[383938910,1757187046921,-1000.0,0.00032873,2]
[383938912,1757187046930,-1000.0,0.00032873,2]
[383938914,1757187046940,-1000.0,0.00032873,2]
[383938916,1757187046949,-1000.0,0.00032873,2]
[383938918,1757187046958,-250.0,0.00032873,2]
[383938920,1757187046968,-1000.0,0.00032873,2]
[383938922,1757187046977,-250.0,0.00032873,2]
[383938924,1757187046987,-1000.0,0.00032873,2]
[383938926,1757187046996,-250.0,0.00032873,2]
[383938928,1757187047006,-1029.6258247,0.00032873,2]
[383938930,1757187047015,-250.0,0.00032873,2]
[383938932,1757187047025,-500.0,0.00032873,2]
[383938935,1757187047035,-500.0,0.00032873,2]
[383938936,1757187047044,-158.23857396,0.00032873,2]
[383938938,1757187047053,-500.0,0.00032873,2]
[383938940,1757187047063,-500.0,0.00032873,2]
[383938942,1757187047072,-500.0,0.00032873,2]
[383938944,1757187047081,-500.0,0.00032873,2]
[383938946,1757187047090,-500.0,0.00032873,2]
[383938948,1757187047100,-201.93286099,0.00032873,2]
[383938950,1757187047109,-500.0,0.00032873,2]
[383938952,1757187047118,-500.0,0.00032873,2]
[383938954,1757187047127,-500.0,0.00032873,2]
[383938956,1757187047136,-500.0,0.00032873,2]
[383938958,1757187047146,-151.0,0.00032874,7]
[383938960,1757187047155,-151.0,0.00032874,7]
[383938962,1757187047165,-183.88,0.00032876,30]
[383938964,1757187047175,-400.34,0.00032876,30]
[383938966,1757187047184,-184.492926,0.00032877,7]
[383938968,1757187047194,-151.0,0.00032877,7]
[383938970,1757187047203,-151.0,0.00032877,7]
[383938972,1757187047214,-155.304013,0.00032877,7]
[383938974,1757187047224,-151.0,0.00032877,7]
[383938976,1757187047233,-151.0,0.00032877,7]
[383938978,1757187047243,-151.0,0.00032877,7]
[383938980,1757187047253,-151.0,0.00032877,7]
[383938983,1757187047262,-151.0,0.00032877,7]
[383938984,1757187047272,-151.0,0.00032877,7]
[383938986,1757187047281,-151.0,0.00032877,7]
[383938988,1757187047291,-151.0,0.00032877,7]
[383938990,1757187047300,-151.0,0.00032877,7]
[383938992,1757187047311,-151.0,0.00032877,7]
[383938994,1757187047321,-151.0,0.00032877,7]
[383938996,1757187047331,-153.059391,0.00032877,7]
[383938998,1757187047340,-151.0,0.00032877,7]
[383939000,1757187047351,-151.0,0.00032877,7]
[383939002,1757187047360,-151.0,0.00032877,7]
[383939004,1757187047370,-151.0,0.00032877,7]
[383939006,1757187047379,-151.0,0.00032877,7]
[383939008,1757187047389,-151.0,0.00032877,7]
[383939010,1757187047398,-283.023163,0.00032877,7]
[383939012,1757187047409,-151.0,0.00032877,7]
[383939015,1757187047419,-151.0,0.00032877,7]
[383939017,1757187047428,-151.0,0.00032877,7]
[383939019,1757187047438,-151.0,0.00032877,7]
[383939021,1757187047448,-151.0,0.00032877,7]
[383939023,1757187047458,-151.0,0.00032877,7]
[383939024,1757187047468,-151.0,0.00032877,7]
[383939027,1757187047478,-151.0,0.00032877,7]
[383939029,1757187047488,-151.0,0.00032877,7]
[383939031,1757187047497,-151.0,0.00032877,7]
[383939033,1757187047507,-151.0,0.00032877,7]
[383939035,1757187047516,-151.0,0.00032877,7]
[383939037,1757187047525,-151.0,0.00032877,7]
[383939039,1757187047534,-151.0,0.00032877,7]
[383939041,1757187047544,-151.0,0.00032877,7]
[383939043,1757187047554,-207.146724,0.00032877,7]
[383939045,1757187047563,-151.0,0.00032877,7]
[383939047,1757187047574,-152.715977,0.00032877,7]
[383939049,1757187047583,-151.0,0.00032877,7]
[383939051,1757187047592,-151.0,0.00032877,7]
[383939053,1757187047602,-151.0,0.00032877,7]
[383939055,1757187047616,-151.0,0.00032877,7]
[383939057,1757187047631,-206.301191,0.00032877,7]
[383939059,1757187047641,-151.0,0.00032877,7]
[383939061,1757187047650,-239.524423,0.00032877,7]
[383939063,1757187047659,-159.492881,0.00032877,7]
[383939065,1757187047669,-151.0,0.00032877,7]
[383939067,1757187047678,-151.0,0.00032877,7]
[383939069,1757187047688,-151.0,0.00032877,7]
[383939071,1757187047697,-151.0,0.00032877,7]
[383939073,1757187047707,-151.0,0.00032877,7]
[383939075,1757187047719,-151.0,0.00032877,7]
[383939077,1757187047729,-151.0,0.00032877,7]
[383939079,1757187047738,-208.925248,0.00032877,7]
[383939081,1757187047747,-151.0,0.00032877,7]
[383939083,1757187047757,-151.0,0.00032877,7]
[383939085,1757187047766,-151.0,0.00032877,7]
[383939087,1757187047776,-151.0,0.00032877,7]
[383939089,1757187047786,-151.0,0.00032877,7]
[383939091,1757187047795,-151.0,0.00032877,7]
[383939092,1757187047804,-151.0,0.00032877,7]
[383939093,1757187047812,-253.960102,0.00032877,7]
[383939094,1757187047822,-151.0,0.00032877,7]
[383939095,1757187047831,-151.0,0.00032877,7]
[383939096,1757187047840,-151.0,0.00032877,7]
[383939097,1757187047849,-228.540574,0.00032877,7]
[383939098,1757187047859,-153.275387,0.00032877,7]
[383939099,1757187047868,-198.753053,0.00032877,7]
[383939100,1757187047877,-151.0,0.00032877,7]
[383939101,1757187047887,-151.0,0.00032877,7]
[383939102,1757187047896,-151.0,0.00032877,7]
[383939103,1757187047908,-151.0,0.00032877,7]
[383939104,1757187047917,-252.462256,0.00032877,7]
[383939105,1757187047926,-151.0,0.00032877,7]
[383939107,1757187047936,-151.0,0.00032877,7]
[383939108,1757187047946,-151.0,0.00032877,7]
[383939110,1757187047955,-151.0,0.00032877,7]
[383939112,1757187047965,-151.0,0.00032877,7]
[383939115,1757187047975,-151.0,0.00032877,7]
[383939116,1757187047985,-151.0,0.00032877,7]
[383939118,1757187047994,-151.0,0.00032877,7]
[383939120,1757187048003,-151.0,0.00032877,7]
[383939122,1757187048012,-151.0,0.00032877,7]
[383939124,1757187048021,-154.459249,0.00032877,7]
[383939126,1757187048034,-151.0,0.00032877,7]
[383939128,1757187048043,-151.0,0.00032877,7]
[383939130,1757187048054,-151.0,0.00032877,7]
[383939132,1757187048064,-151.0,0.00032877,7]
[383939134,1757187048074,-151.0,0.00032877,7]
[383939136,1757187048085,-151.0,0.00032877,7]
[383939138,1757187048096,-238.210585,0.00032877,7]
[383939140,1757187048106,-151.0,0.00032877,7]
[383939142,1757187048117,-298.170556,0.00032877,7]
[383939144,1757187048127,-778.486706,0.00032877,7]
[383939146,1757187048138,-778.486706,0.00032877,7]
[383939148,1757187048148,-151.0,0.00032877,7]
[383939150,1757187048159,-778.486706,0.00032877,7]
[383939152,1757187048170,-151.0,0.00032877,7]
[383939154,1757187048180,-778.486706,0.00032877,7]
[383939156,1757187048191,-151.0,0.00032877,7]
[383939158,1757187048201,-778.486706,0.00032877,7]
[383939160,1757187048211,-778.486706,0.00032877,7]
[383939162,1757187048222,-151.0,0.00032877,7]
[383939164,1757187048232,-778.486706,0.00032877,7]
[383939166,1757187048242,-151.0,0.00032877,7]
[383939168,1757187048252,-778.486706,0.00032877,7]
[383939170,1757187048262,-151.0,0.00032877,7]
[383939172,1757187048271,-778.486706,0.00032877,7]
[383939174,1757187048281,-151.0,0.00032877,7]
[383939176,1757187048291,-778.486706,0.00032877,7]
[383939178,1757187048301,-151.0,0.00032877,7]
[383939180,1757187048310,-778.486706,0.00032877,7]
[383939182,1757187048320,-151.0,0.00032877,7]
[383939184,1757187048329,-778.486706,0.00032877,7]
[383939186,1757187048345,-151.0,0.00032877,7]
[383939188,1757187048354,-151.0,0.00032877,7]
[383939190,1757187048364,-151.0,0.00032877,7]
[383939192,1757187048373,-151.0,0.00032877,7]